Cogmind - Beta 14 @@@ ROGUE MODE // 2024.09.08 @ 01:22:30 Player: Tottery Result: Self-destructed Performance ------------- Evolutions (1) 500 Regions Visited (2) 400 Robots Destroyed (6) 30 Value Destroyed (128) 128 Prototype IDs (0) 0 Alien Tech Used (0) 0 Bonus (0) 0 TOTAL SCORE: 1058 Bonus ------- None Cogmind --------- Core Integrity 52/400 Matter 300/300 Energy 100/100 System Corruption 0% Temperature Cool (6) Movement Core (100) Ox1 Location -9/Materials Parts ------- > --- POWER (1) -------- (None) > --- PROPULSION (2) --- (None) > --- UTILITY (4) ------ Small Storage Unit > --- WEAPON (2) ------- (None) > --- INVENTORY (8) ---- Ion Engine Medium Laser Peak State ------------ > --- POWER ------------ Ion Engine > --- PROPULSION ------- Light Treads Improved Aluminum Leg > --- UTILITY ---------- Small Storage Unit Structural Scanner Terrain Scanner Seismic Detector > --- WEAPON ----------- Medium Laser Beam Rifle > --- INVENTORY -------- Ion Engine Medium Laser [Rating: 11] Favorites ----------- Power Ion Engine Engine Ion Engine Propulsion Aluminum Leg Treads Light Treads Leg Aluminum Leg Utility Small Storage Unit Device Seismic Detector Storage Small Storage Unit Weapon Medium Laser Energy Gun Medium Laser Ballistic Gun Light Assault Rifle Special Weapon Mining Laser Build | -11 -10 -9 ------- Run | Yrd Mat Mat Slots Evolved 2 | . . 2 Power . | . . . Propulsion . | . . . Utility 2 | . . 2 Weapon . | . . . Parts Attached 18 | 6 3 9 Power 2 | 1 . 1 Engine 2 | 1 . 1 Core . | . . . Reactor . | . . . Propulsion 6 | 2 . 4 Treads 3 | . . 3 Leg 3 | 2 . 1 Wheel . | . . . Hover . | . . . Flight . | . . . Utility 4 | 1 1 2 Device 3 | . 1 2 Storage 1 | 1 . . Processor . | . . . Hackware . | . . . Protection . | . . . Artifact . | . . . Weapon 6 | 2 2 2 Energy Gun 4 | 1 1 2 Energy Cannon . | . . . Ballistic Gun 1 | 1 . . Ballistic Cannon . | . . . Launcher . | . . . Special Weapon 1 | . 1 . Impact Weapon . | . . . Slashing Weapon . | . . . Piercing Weapon . | . . . Special Melee Weapon . | . . . Unidentified Prototypes . | . . . Parts Lost 13 | . 6 7 Power 2 | . 1 1 Propulsion 3 | . 2 1 Utility 3 | . . 3 Weapon 5 | . 3 2 Highest Loss Streak 7 | . 6 7 To Critical Strikes . | . . . Average Slot Usage (%) 63 | . 79 57 Engine 6 | . 12 4 Treads 5 | . . 7 Leg 7 | . 22 1 Device 11 | . 7 13 Storage 11 | . 14 11 Energy Gun 17 | . 10 19 Ballistic Gun 2 | . 8 . Peak Build Rating 11 | 6 7 11 Average Rating 5 | 4 5 5 On Entrance 3 | . 6 3 Naked Turns . | . . . Heaviest Build 18 | 13 13 18 Greatest Support 40 | 20 20 40 Greatest Overweight (x) 4 | . 4 3 Average Overweight (x) . | . . 1 Largest Inventory Capacity 8 | 8 8 8 Average Capacity 7 | 6 8 8 Most Carried 3 | 1 1 3 Average Carried 1 | . 1 1 Final Capacity 8 | 8 8 8 Final Carried 2 | 1 1 2 Class Distribution -------------------- 100% | Mutant Dominant Class ---------------- Mutant | -10/Materials Mutant | -9/Materials Resources | -11 -10 -9 ----------- Run | Yrd Mat Mat Matter Collected 328 | 215 . 113 Remotely . | . . . Salvage Created 172 | . . 172 Parts 22 | . 2 20 Haulers Intercepted . | . . . Recyclers Shooed . | . . . Parts Field Recycled . | . . . Retrieved Matter . | . . . Parts Self-Destructed . | . . . Prevented . | . . . Kills | -11 -10 -9 ------- Run | Yrd Mat Mat Combat Hostiles Destroyed 3 | . . 3 Guns 3 | . . 3 Classes Destroyed 3 | . 1 2 Builder 3 | . 1 2 Grunt 2 | . . 2 Sentry 1 | . . 1 Best Kill Streak 4 | . 1 4 Combat Bots Only 2 | . . 2 Max Kills in Single Turn 2 | . 1 2 Gunslinging . | . . . Exploded . | . . . Melee . | . . . Uniques/NPCs Destroyed . | . . . Combat | -11 -10 -9 -------- Run | Yrd Mat Mat Hostile Shots Fired 202 | . 112 90 Missed 62 | . 34 28 Damage Taken 1597 | . 773 824 Core 593 | . 245 348 Absorbed by Shields . | . . . Core Remaining (%) 51 | 100 2 . Volleys Fired 25 | . 5 20 Largest 2 | . 2 2 Hottest 150 | . 150 106 Shots Fired 48 | . 8 40 Gun 45 | . 5 40 Cannon . | . . . Launcher . | . . . Special 3 | . 3 . Kinetic 1 | . 1 . Thermal 46 | . 6 40 Explosive . | . . . Electromagnetic 1 | . 1 . Robot Hit Streak 7 | . 1 7 Robot Miss Streak 4 | . 3 4 Penetration Max . | . . . Secondary Targets . | . . . Shots Hit Robots 25 | . 1 24 Core Hits 10 | . 1 9 Critical Kills . | . . . Critical Parts Destroyed . | . . . Critical Strikes . | . . . Melee Attacks . | . . . Impact . | . . . Slashing . | . . . Piercing . | . . . Sneak Attacks . | . . . Combat Hostiles . | . . . Follow-up Attacks . | . . . Damage Inflicted 393 | . 49 344 Guns 368 | . 24 344 Cannons . | . . . Explosions . | . . . Melee . | . . . Ramming 1 | . 1 . Kinetic . | . . . Thermal 392 | . 48 344 Explosive . | . . . Electromagnetic . | . . . Impact . | . . . Slashing . | . . . Piercing . | . . . Highest Corruption . | . . . Average Corruption . | . . . Corruption Purged . | . . . Corruption Blocked . | . . . Overload Shots . | . . . Overflow Damage . | . . . Projectiles . | . . . Explosions . | . . . Melee . | . . . Knockbacks . | . . . Impact . | . . . Kinetic . | . . . Secondary . | . . . Self-Inflicted Damage . | . . . Shots . | . . . Rammed 1 | . 1 . Targets Rammed 1 | . 1 . Kicked . | . . . Crushed . | . . . Highest Temperature 288 | . 137 288 Average Temperature 75 | . 49 85 Received Heat Transfer 597 | . 222 375 Effects 2 | . . 2 Interference 2 | . . 2 Siege Activations . | . . . Robots Corrupted . | . . . Combat Hostiles . | . . . Parts Fried . | . . . Impact Corruptions . | . . . Robots Melted . | . . . Combat Hostiles . | . . . Parts Melted 5 | . 2 3 Heat Transferred 1086 | . 124 962 Parts Sabotaged . | . . . Parts Stolen . | . . . Parts Stripped . | . . . Power Chain Reactions . | . . . Alert | -11 -10 -9 ------- Run | Yrd Mat Mat Peak Influence 157 | . 20 157 Initial 8 | . . 8 Average 39 | . 2 63 Maximum Alert Level . | . . . Low Security (%) 100 | 100 100 100 Level 1 . | . . . Level 2 . | . . . Level 3 . | . . . Level 4 . | . . . Level 5 . | . . . High Security . | . . . Max Security . | . . . Squads Dispatched 2 | . . 2 Investigation . | . . . Extermination . | . . . Reinforcement 2 | . . 2 Assault . | . . . Garrison . | . . . Intercept . | . . . Searches Triggered . | . . . Construction Impeded . | . . . Haulers Reinforced . | . . . Active Scanning Responses . | . . . Cargo Convoy Interrupts . | . . . Stealth | -11 -10 -9 --------- Run | Yrd Mat Mat Distress Signals 2 | . . 2 Communications Jammed . | . . . Distress Signals . | . . . Times Spotted 22 | . 8 14 Peak Tracking Total 8 | . 8 8 Tactical Retreats 2 | . 1 1 Traps | -11 -10 -9 ------- Run | Yrd Mat Mat Traps Triggered . | . . . Indirectly . | . . . Trap Hack Attempts . | . . . Triggered . | . . . Disarmed . | . . . Reprogrammed . | . . . Reused . | . . . Traps Extracted . | . . . Installed . | . . . Triggered . | . . . Machines | -11 -10 -9 ---------- Run | Yrd Mat Mat Machines Disabled . | . . . Max in Single Turn . | . . . Machines Repaired . | . . . Machines Dismantled . | . . . Machines Sabotaged . | . . . Overloaded Fab Kills . | . . . Hacking | -11 -10 -9 --------- Run | Yrd Mat Mat Machines Accessed 1 | . . 1 Terminals 1 | . . 1 Fabricators . | . . . Repair Stations . | . . . Recycling Units . | . . . Scanalyzers . | . . . Garrison Access . | . . . Total Hacks 3 | . . 3 Successful 3 | . . 3 Failed . | . . . Catastrophic . | . . . Database Lockouts . | . . . Manual 1 | . . 1 Terminals 3 | . . 3 Fabricators . | . . . Repair Stations . | . . . Recycling Units . | . . . Scanalyzers . | . . . Garrison Access . | . . . Terminal Hacks 3 | . . 3 Record 2 | . . 2 Registered Components 1 | . . 1 Fabricator Hacks . | . . . Repair Station Hacks . | . . . Recycling Unit Hacks . | . . . Scanalyzer . | . . . Garrison Access Hacks . | . . . Unauthorized Hacks . | . . . Terminals . | . . . Fabricators . | . . . Repair Stations . | . . . Recycling Units . | . . . Scanalyzers . | . . . Garrison Access . | . . . Data Cores Recovered . | . . . Used . | . . . Hacking Detections 1 | . . 1 Full Trace Events . | . . . Feedback Events . | . . . Feedback Blocked . | . . . Robot Schematics Acquired . | . . . Robots Built . | . . . Authchips . | . . . Time . | . . . Total Robot Build Rating . | . . . Part Schematics Acquired . | . . . Parts Built . | . . . Authchips . | . . . Time . | . . . Total Part Build Rating . | . . . Parts Repaired . | . . . Time . | . . . Parts Recycled . | . . . Recycled Matter . | . . . Retrieved Matter . | . . . Retrieved Components . | . . . Parts Scanalyzed . | . . . Part Schematics Acquired . | . . . Parts Damaged . | . . . Bothacking | -11 -10 -9 ------------ Run | Yrd Mat Mat Used RIF Installer . | . . . Robots Hacked . | . . . Non-combat . | . . . Combat . | . . . Robot Hacks Applied . | . . . Relay Couplers Released . | . . . Fabnet Peak Effective % . | . . . Robots Rewired . | . . . Allies Hacked . | . . . Hacks Repelled . | . . . Allies | -11 -10 -9 -------- Run | Yrd Mat Mat Total Allies . | . . . Largest Group . | . . . Highest-Rated Group . | . . . Highest-Rated Ally . | . . . Total Orders . | . . . Ally Attacks . | . . . Total Damage . | . . . Kills . | . . . Allies Corrupted . | . . . Allies Melted . | . . . Intel | -11 -10 -9 ------- Run | Yrd Mat Mat Robot Analysis Total . | . . . Derelict Logs Recovered . | . . . Drone Launches . | . . . Drone Recoveries . | . . . Exploration | -11 -10 -9 ------------- Run | Yrd Mat Mat Turns Passed 527 | 80 125 322 Spaces Moved 258 | 54 78 126 Core 85 | 4 10 71 Treads 50 | . . 50 Legs 123 | 50 68 5 Wheels . | . . . Hover . | . . . Flight . | . . . Fastest Speed 50 | 50 120 120 Average Speed 147 | 114 128 173 Slowest Speed 250 | 120 250 200 Overloaded Moves . | . . . Propulsion Burnouts . | . . . Robots Hopped . | . . . Cave-ins Triggered . | . . . Exploration Rate (%) 13 | 4 23 12 Regions Visited 2 Branch Regions . Pre-discovered Areas . | . . . Known Exits Taken . | . . . Unknown Exits Taken 2 | 1 1 . Scrap Searched . | . . . Spaces Dug 1 | . 1 . Terrain Destroyed 1 | . 1 . Melee . | . . . Projectile 1 | . 1 . AOE . | . . . Terrain Rammed . | . . . Walls Destroyed . | . . . Machines Disabled . | . . . Actions | -11 -10 -9 --------- Run | Yrd Mat Mat Total 342 | 69 86 187 Wait 36 | 9 . 27 Move 256 | 53 77 126 Hop . | . . . Pick Up 2 | 1 . 1 Fast Attach 16 | 6 3 7 Attach 1 | . . 1 Detach 1 | . . 1 Swap 1 | . . 1 Drop 3 | . . 3 Fire 25 | . 5 20 Melee . | . . . Ram 1 | . 1 . Kick . | . . . Crush . | . . . Escape Stasis . | . . . Rewire . | . . . Trap . | . . . Miscellaneous . | . . . Route ------- -11/Scrapyard -10/Materials -9/Materials (discovered 1 exit: [*Sto]) History --------- Turn | Location | Event 5 | -11/Scrapyard | Discovered new exit (range 15) 81 | -11/Scrapyard | Entered Materials 186 | -10/Materials | Core integrity fell below 50% 196 | -10/Materials | Core integrity fell below 20% 200 | -10/Materials | Discovered new exit (range 4) 206 | -10/Materials | Entered another Materials area 206 | -9/Materials | Evolved 2 slots: Utility x2 230 | -9/Materials | Lost 6 parts (1p2n3w) 316 | -9/Materials | Build established: Mutant 317 | -9/Materials | Discovered new exit (range 11) 521 | -9/Materials | Core integrity fell below 50% 527 | -9/Materials | Core integrity fell below 20% 528 | -9/Materials | Self-destructed Last Messages --------------- 00504_ G-34 Mercenary heat damages Heat Sink. 00504_ G-34 Mercenary overheating. 00506_ G-34 Mercenary heat damages core (-3). 00506_ Terrain Scanner destroyed. 00506_ G-34 Mercenary overheating. 00509_ Beam Rifle destroyed. 00509_ G-34 Mercenary overheating. 00511_ G-34 Mercenary heat short circuits Ion Engine. 00511_ G-34 Mercenary overheating. 00511_ Med. Laser destroyed. 00514_ G-34 Mercenary heat short circuits Aluminum Leg. 00514_ G-34 Mercenary destroyed. 00515_ Structural Scanner destroyed. 00516_ Imp. Aluminum Leg destroyed. 00518_ Critical hit (Burn: +37). 00523_ K-01 Serf collects debris. 00524_ G-34 Mercenary destroyed. 00526_ K-01 Serf collects debris. Map ----- +----------------------------------------------------+ | ????? ??????# #?????# #??????????????????????????? | | ##### ??????# #?????# #??????????????????????????? | | # #?????# #?????# #??????????????????????????? | | # #?????# #?????# #??????????????????????????? | | # #?????# #?????# #??????????????????????????? | | # #?????# #?????# #??????????????????????????? | | # #??####/####### ##?????????????????????????? | | # #??# # #?????????????????????????? | | # #??# T # #?????????????????????????? | | # #??# # #?????????????????????????? | | ##### #??# + #?????????????????????????? | | # #??# # #?????????????????????????? | | #### """" # #?????????????????????????? | | / """" # #?????????????????????????? | | #### """" # #?????????????????????????? | | # #??########### #?????????????????????????? | | #######???????????## #?????????????????????????? | | ?????????????###??## #?????????????????????????? | | ?????????????###??## *#?????? ##????????????????? | | ?????????????## ??## !#### ####### ??????????? | | ?????????????## # =#######/####### ?]????????? | | ?????????????## # *%= ^ # ??????????? | | ?????????????### == ^ # ??????????? | | ??????????????### # *%|=^ # ??????????? | | ??????????????#########k########## # ??????????? | | ??????????????????### Y@######## ? ##??????????? | | ???????????????????## g%g ##????#????????????????? | | ???????????????????## g!%!##?#???? ??????????????? | | ???????????????????## g[# ?????????????????????? | | ????????????? ?????## =# ??????????#??????????? | | ????????????#??????## = # ?????????????????????? | | ???????????????????## # ????#????????????????? | | ???????????????????######## ?????????????????????? | | ????????????????? ? # ?????????????????????? | | ??????????????????????? ????? ???????????????????? | | ??????????? ???????????????????????"?????????????? | | ????????????????????????"?????? ?????????????????? | | ????????????????? ???????????????????????????????? | | ?????????!???????????????????????????????????????? | | ????????????????????????????????#????????????????? | | ????????????????????????#????????????????????????? | | ?????????????????????????????????????????????????? | | ?????????????????????????????????????????????????? | | ?????????????????????????????????????????????????? | | ?????????????????????????????????????????????????? | | ?????????????????????????????????????????????????? | | ?????????????????????????????????????????????????? | | ?????????????????????????????????????????????????? | | ?????????????????????????????????????????????????? | | ?????????????????????????????????????????????????? | +----------------------------------------------------+ Best States ------------- Heat Dissipation 28 Energy Generation 10 Energy Capacity 250 Matter Stores 300 Matter Capacity 300 Sight Range 16 Terrain Scan Range 14 Terrain Scan Density 10 Evasion (%) 55 Recoil Reduction 2 Item Schematics ----------------- None Robot Schematics ------------------ None Fabricated ------------ Nothing Alien Tech Used ----------------- None Achievements -------------- None Challenges ------------ None Game ------ Seed ThermoelectricScatterWell Manual? 0 Play Time 00:07:17 Cumulative 16.8 hours Start 2024.09.08 @ 01:07:39 End 2024.09.08 @ 01:22:30 Sessions 1 Manual Loads 0 Difficulty Rogue Special Mode None Game No. 18 Rogue 18 Adventurer 0 Explorer 0 Win Type - Total 0 Types 0/0/0/0/0/0/0/0/0 Lore% 4 Gallery% 17 Achievement% 15 Wizard Run 0 Options --------- Layout 1 ASCII 0 Keyboard 1 Movement Arrows Keybinds 0 Fullscreen 2 Font 32/SmallcapsGlow Map View 50x35 Zoom Use 0% Tactical HUD 1 Map Filters NONE Filters NONE Steam 1 RUN: 15c10e19-3d28-4cf3-912a-158f81e0cc90